bitfinex/quotes_SOLUSD_20250601
["timestamp","ask_amount","ask_price","bid_price","bid_amount"]
[1748810722351,168.58467389,156.13,156.12,26.0]
[1748810724379,148.9,156.13,156.12,26.0]
[1748810724532,148.9,156.13,156.12,32.40532923]
[1748810726945,168.58467389,156.13,156.12,32.40532923]
[1748810727452,168.58467389,156.13,156.12,26.0]
[1748810727661,0.2233296,156.15,156.14,26.0]
[1748810728058,0.2233296,156.15,156.14,45.68467389]
[1748810728980,0.2233296,156.15,156.14,32.40450877]
[1748810737698,19.90800349,156.15,156.14,32.40450877]
[1748810738782,0.2233296,156.15,156.14,32.40450877]
[1748810739550,0.2233296,156.15,156.14,52.08918266]
[1748810740369,0.2233296,156.15,156.14,32.40450877]
[1748810740565,0.2233296,156.15,156.14,52.08918266]
[1748810741252,0.2233296,156.15,156.14,32.40450877]
[1748810742878,0.2233296,156.15,156.13,6.40478039]
[1748810743178,19.68467389,156.14,156.1,10.06]
[1748810743362,19.68467389,156.12,156.1,10.06]
[1748810744177,19.68467389,156.12,156.1,16.46602685]
[1748810747087,19.68467389,156.12,156.1,10.06]
[1748810747479,19.68467389,156.12,156.11,26.0]
[1748810749259,0.2233296,156.15,156.11,26.09011338]
[1748810749481,0.2233296,156.15,156.14,19.68467389]
[1748810750781,0.2233296,156.15,156.14,26.08918266]
[1748810751673,0.2233296,156.15,156.14,6.40450877]
[1748810752982,0.2233296,156.15,156.14,26.08918266]
[1748810778917,0.2233296,156.15,156.14,26.0]
[1748810779086,19.90800349,156.15,156.14,26.0]
[1748810780299,19.90800349,156.15,156.1,6.40600134]
[1748810780600,19.90800349,156.15,156.13,26.0]
[1748810780601,19.68467389,156.14,156.13,26.0]
[1748810781294,19.90800349,156.14,156.13,26.0]
[1748810782584,0.2233296,156.14,156.13,26.0]
[1748810785689,19.90800349,156.14,156.13,26.0]
[1748810787920,0.2233296,156.14,156.13,26.0]
[1748810788412,19.90800349,156.14,156.13,26.0]
[1748810789895,0.2233296,156.14,156.13,26.0]
[1748810791586,19.90800349,156.14,156.13,26.0]
[1748810792313,0.2233296,156.14,156.13,26.0]
[1748810792519,19.90800349,156.14,156.13,26.0]
[1748810796605,26.31251226,156.14,156.11,26.0]
[1748810796817,19.68467389,156.12,156.11,26.0]
[1748810797315,19.68467389,156.12,156.06,30.31294886]
[1748810797518,148.9,156.13,156.1,26.0]
[1748810797519,19.68467389,156.11,156.1,26.0]
[1748810798592,26.09041343,156.11,156.06,6.40764816]
[1748810798827,26.09041343,156.11,156.08,26.0]
[1748810798828,6.40573954,156.11,156.08,26.0]
[1748810799430,6.40546104,156.12,156.08,26.0]
[1748810800042,19.68467389,156.09,156.08,26.0]
[1748810800199,6.40546104,156.12,156.08,26.0]
[1748810800411,19.68467389,156.09,156.08,26.0]
[1748810800709,19.68467389,156.09,156.07,26.0]
[1748810800920,19.68467389,156.09,156.06,6.40743471]
[1748810801494,19.68467389,156.11,156.09,26.0]
[1748810802822,19.68467389,156.11,156.09,32.40653799]
[1748810803900,148.9,156.1,156.09,32.40653799]
[1748810808106,0.2233296,156.14,156.09,52.09121188]
[1748810808408,0.2233296,156.14,156.1,19.68467389]
[1748810809117,0.2233296,156.14,156.11,6.40573954]
[1748810809928,0.2233296,156.14,156.11,26.09041343]
[1748810811019,0.2233296,156.14,156.12,19.68467389]
[1748810811216,0.2233296,156.14,156.11,12.80953954]
[1748810811217,0.2233296,156.14,156.13,19.68467389]
[1748810813726,0.2233296,156.14,156.13,44.73924172]
[1748810820842,0.2233296,156.14,156.13,26.08959286]
[1748810821229,0.2233296,156.14,156.13,65.12959286]
[1748810828231,0.2233296,156.14,156.13,83.77924172]
[1748810845239,0.2233296,156.14,156.13,64.09456783]
[1748810845551,0.2233296,156.14,156.13,83.77924172]
[1748810847228,0.2233296,156.14,156.13,44.73924172]
[1748810847628,0.2233296,156.14,156.13,93.81924172]
[1748810855480,0.2233296,156.14,156.13,74.13456783]
[1748810855639,0.2233296,156.14,156.13,93.81924172]
[1748810857438,0.2233296,156.14,156.13,54.79924172]
[1748810857660,0.2233296,156.14,156.13,93.81924172]
[1748810861161,0.2233296,156.14,156.13,86.72548818]
[1748810865364,0.2233296,156.14,156.13,16.46491897]
[1748810865546,0.2233296,156.14,156.13,68.07583932]
[1748810865865,0.2233296,156.14,156.13,6.40491897]
[1748810866442,0.2233296,156.14,156.13,26.0]
[1748810867862,0.2233296,156.14,156.13,32.40491897]
[1748810875873,0.2233296,156.14,156.13,26.0]
[1748810878158,19.9043793,156.14,156.13,26.0]
[1748810878380,19.9043793,156.14,156.09,29.7410497]
[1748810878381,21.5566793,156.14,156.1,6.40599818]
[1748810878676,19.6810497,156.12,156.1,6.40599818]
[1748810878978,1.8756296,156.14,156.1,6.40599818]
[1748810878979,19.6810497,156.13,156.1,6.40599818]
[1748810879187,19.6810497,156.13,156.12,26.0]
[1748810879367,26.08596867,156.13,156.08,26.0]
[1748810879681,19.6810497,156.1,156.09,26.0]
[1748810881367,19.6810497,156.11,156.09,26.0]
[1748810883358,19.6810497,156.1,156.09,26.0]
[1748810883584,148.9,156.12,156.09,26.0]
[1748810883585,19.6810497,156.11,156.09,26.0]
[1748810887181,12.60407033,156.11,156.09,26.0]
[1748810887384,12.82739993,156.11,156.09,26.0]
[1748810888464,12.82739993,156.11,156.1,26.0]
[1748810891068,12.82739993,156.11,156.09,26.0]
[1748810891270,161.50407033,156.1,156.09,26.0]
[1748810895470,12.60407033,156.1,156.09,26.0]
[1748810895672,0.2233296,156.11,156.09,26.0]
[1748810895872,12.60407033,156.1,156.09,26.0]
[1748810896797,0.2233296,156.11,156.09,32.40651378]
[1748810897479,0.2233296,156.11,156.09,26.0]
[1748810897676,0.2233296,156.11,156.09,32.40645512]
[1748810898991,0.2233296,156.11,156.09,26.0]
[1748810899197,12.82739993,156.11,156.09,26.0]
[1748810901985,12.60407033,156.1,156.09,26.0]
[1748810902499,12.82739993,156.1,156.09,26.0]
[1748810909015,12.82739993,156.1,156.09,32.40656031]
[1748810913896,12.82739993,156.1,156.09,26.0]
[1748810923499,0.2233296,156.1,156.09,26.0]
[1748810927535,0.2233296,156.1,156.09,32.40656031]
[1748810930709,12.82739993,156.1,156.08,26.0]
[1748810930900,12.60407033,156.09,156.08,26.0]
[1748810932711,12.82739993,156.09,156.08,26.0]
[1748810935529,148.9,156.08,156.01,6.40984552]
[1748810935707,12.60407033,156.04,156.01,6.40984552]
[1748810936022,12.60407033,156.04,156.03,26.0]
[1748810938299,12.60407033,156.04,156.01,6.40984552]
[1748810938496,12.60407033,156.04,156.03,26.0]
[1748810940712,12.60407033,156.04,156.02,6.40935046]
[1748810940916,12.60407033,156.05,156.02,6.40935046]
[1748810941116,12.60407033,156.05,156.04,26.0]
[1748810944305,155.30710206,156.08,156.05,26.0]
[1748810944511,12.60407033,156.06,156.05,26.0]
[1748810944914,12.60407033,156.06,156.04,26.0]
[1748810945106,12.60407033,156.05,156.04,26.0]
[1748810945728,12.60407033,156.05,156.02,6.40940091]
[1748810946617,12.60407033,156.05,156.04,26.0]
[1748810947523,12.60407033,156.05,156.02,6.40940091]
[1748810947839,12.60407033,156.04,156.03,26.0]
[1748810948046,12.82739993,156.04,156.03,26.0]
[1748810953838,0.2233296,156.04,156.03,26.0]
[1748810954448,0.2233296,156.04,156.03,32.4090239]
[1748810954616,0.2233296,156.04,156.03,26.0]
[1748810959748,12.82739993,156.04,156.03,26.0]
[1748810963545,19.23606115,156.04,155.96,16.02881941]
[1748810963728,19.23606115,156.04,155.93,10.06]
[1748810963729,12.60407033,155.99,155.93,18.3385]
[1748810963928,12.60407033,155.99,155.93,37.35529545]
[1748810964252,12.60407033,155.99,155.97,26.0]
[1748810964440,12.60407033,155.99,155.94,12.60407033]
[1748810964837,12.60407033,155.99,155.97,26.0]
[1748810966226,12.60407033,155.99,155.98,26.0]
[1748810968251,148.9,156.03,155.97,38.60407033]
[1748810968449,148.9,156.03,156.02,26.0]
[1748810968628,0.2233296,156.04,156.03,26.0]
[1748810968823,12.82739993,156.04,156.03,26.0]
[1748810969332,12.82739993,156.04,155.99,12.60407033]
[1748810969553,12.60407033,156.03,156.02,26.0]
[1748810969852,12.82739993,156.04,156.02,26.0]
[1748810970344,12.82739993,156.04,156.03,26.0]
[1748810973327,12.82739993,156.04,156.0,38.60407033]
[1748810973760,0.2233296,156.04,156.0,38.60407033]
[1748810974043,12.82739993,156.04,156.03,26.0]
[1748810998391,12.82739993,156.04,156.0,6.41010385]
[1748810999287,12.60407033,156.03,156.02,26.0]
[1748811001981,161.50407033,156.03,156.02,26.0]
[1748811003078,148.9,156.03,156.0,32.41025388]
[1748811003281,148.9,156.03,156.0,45.01432421]
[1748811004482,148.9,156.03,156.0,32.41025388]
[1748811008596,149.1233296,156.03,156.0,32.41025388]
[1748811017688,149.1233296,156.03,156.01,26.0]
[1748811017884,12.60407033,156.02,156.01,26.0]
[1748811023738,12.82739993,156.02,156.01,26.0]
[1748811028762,0.2233296,156.02,156.0,32.41024356]
[1748811029052,12.82739993,156.02,156.0,32.41024356]
[1748811031228,12.82739993,156.02,156.01,26.0]
[1748811033554,12.82739993,156.02,155.99,26.0]
[1748811033732,12.60407033,156.01,155.99,26.0]
[1748811037772,12.60407033,156.01,155.99,32.41053521]
[1748811039058,0.2233296,156.01,155.99,32.41053521]
[1748811049675,12.60407033,156.0,155.96,6.4116201]
[1748811049857,12.60407033,155.99,155.96,6.4116201]
[1748811050052,12.60407033,155.99,155.98,26.0]
[1748811054078,12.82739993,155.99,155.98,26.0]
[1748811060871,12.82739993,155.99,155.96,32.41188299]
[1748811061270,0.2233296,155.99,155.88,3.21608777]
[1748811061468,0.2233296,155.99,155.9,12.70018064]
[1748811061469,26.0,155.96,155.9,12.70018064]
[1748811061884,12.60407033,155.93,155.9,12.70018064]
[1748811062267,60.07187745,155.99,155.9,12.70018064]
[1748811062268,12.60407033,155.94,155.9,12.70018064]
[1748811062468,12.60407033,155.94,155.9,25.30425097]
[1748811062878,26.0,155.98,155.9,25.30425097]
[1748811063162,12.60407033,155.98,155.93,12.60407033]
[1748811064607,12.60407033,155.98,155.94,6.41272284]
[1748811068514,14.6409992,155.99,155.94,19.01679317]
[1748811068868,12.60407033,155.98,155.94,19.01679317]
[1748811069283,0.2233296,155.98,155.95,12.60407033]
[1748811069472,0.2233296,155.98,155.96,12.60407033]
[1748811070478,0.2233296,155.98,155.97,6.41148938]
[1748811073699,0.2233296,155.98,155.96,12.60407033]
[1748811074394,0.2233296,155.98,155.95,25.06196049]
[1748811074601,12.60407033,155.97,155.95,6.41231163]
[1748811074788,12.82739993,155.98,155.95,6.41231163]
[1748811075906,12.60407033,155.97,155.94,6.41272284]
[1748811076312,12.60407033,155.97,155.93,6.41302158]
[1748811077299,19.72969145,155.97,155.93,6.41302158]
[1748811078012,19.72969145,155.94,155.89,6.41477965]
[1748811078187,19.72969145,155.92,155.89,6.41477965]
[1748811078510,19.72969145,155.91,155.88,6.41508486]
[1748811080003,148.9,155.95,155.88,6.41508486]
[1748811080214,57.42762545,155.98,155.83,10.04]
[1748811080215,1.5566,155.92,155.83,10.04]
[1748811080381,1.5566,155.92,155.83,29.76969145]
[1748811080579,19.72969145,155.89,155.84,19.72969145]
[1748811081193,19.72969145,155.89,155.84,6.41683778]
[1748811081398,19.72969145,155.89,155.84,26.14652923]
[1748811084014,19.72969145,155.85,155.83,10.04]
[1748811084393,19.72969145,155.88,155.83,29.76969145]
[1748811085092,19.72969145,155.88,155.84,19.72969145]
[1748811085309,19.72969145,155.88,155.83,29.76969145]
[1748811085820,19.72969145,155.89,155.85,19.72969145]
[1748811085995,155.3140829,155.91,155.86,19.72969145]
[1748811086316,19.72969145,155.89,155.85,19.72969145]
[1748811088016,19.72969145,155.89,155.84,26.14632818]
[1748811089888,19.72969145,155.9,155.86,19.72969145]
[1748811092513,148.9,155.91,155.86,26.14561237]
[1748811092814,148.9,155.91,155.88,19.72969145]
[1748811093429,148.9,155.91,155.87,19.72969145]
[1748811093593,168.62969145,155.91,155.87,19.72969145]
[1748811094925,19.72969145,155.9,155.85,6.41642605]
[1748811095223,155.31407109,155.91,155.86,19.72969145]
[1748811095421,168.62969145,155.91,155.85,6.41642605]
[1748811095603,19.72969145,155.9,155.86,19.72969145]
[1748811096909,168.62969145,155.91,155.86,26.14558846]
[1748811097103,148.9,155.91,155.87,19.72969145]
[1748811100336,148.9,155.91,155.87,26.14498343]
[1748811105026,148.9,155.91,155.88,19.72969145]
[1748811106114,148.9,155.91,155.89,19.72969145]
[1748811107128,148.9,155.91,155.89,26.14416344]
[1748811112141,148.9,155.91,155.89,19.72969145]
[1748811112438,148.9,155.91,155.88,26.14475216]
[1748811114151,148.9,155.91,155.88,19.72969145]
[1748811114316,148.9,155.91,155.87,19.72969145]
[1748811114722,168.62969145,155.91,155.83,26.0]
[1748811115037,19.72969145,155.88,155.8,53.1489307]
[1748811115238,19.72969145,155.88,155.83,19.72969145]
[1748811115423,19.72969145,155.86,155.82,6.4176614]
[1748811116342,19.72969145,155.85,155.8,44.60198268]
[1748811118245,6.41644709,155.85,155.8,18.45386034]
[1748811118538,26.14613854,155.85,155.8,38.18355179]
[1748811118744,19.72969145,155.84,155.8,38.18355179]
[1748811118947,19.72969145,155.84,155.8,30.44969145]
[1748811119247,19.72969145,155.84,155.8,10.72]
[1748811119737,19.72969145,155.84,155.8,30.44969145]
[1748811120348,26.14659423,155.84,155.78,6.41920368]
[1748811120549,175.04659423,155.84,155.79,19.72969145]
[1748811121128,19.72969145,155.82,155.78,19.72969145]
[1748811121538,155.31690278,155.84,155.78,19.72969145]
[1748811121738,19.72969145,155.83,155.78,19.72969145]
[1748811122330,168.62969145,155.84,155.79,19.72969145]
[1748811122947,168.62969145,155.84,155.78,6.41921137]
[1748811122948,19.72969145,155.83,155.78,26.14890282]
[1748811123156,19.72969145,155.83,155.79,19.72969145]
[1748811123646,19.72969145,155.83,155.78,26.14890282]
[1748811126655,19.72969145,155.83,155.79,19.72969145]
[1748811127145,168.62969145,155.84,155.79,19.72969145]
[1748811127935,148.9,155.84,155.8,19.72969145]
[1748811128125,148.9,155.84,155.81,19.72969145]
[1748811128326,148.9,155.84,155.8,19.72969145]
[1748811128540,168.62969145,155.84,155.79,19.72969145]
[1748811129248,168.62969145,155.84,155.79,26.14850996]
[1748811129628,19.72969145,155.83,155.79,6.41881851]
[1748811129836,19.72969145,155.83,155.77,6.41972138]
[1748811130030,19.72969145,155.82,155.77,19.72969145]
[1748811130350,19.72969145,155.8,155.76,10.72]
[1748811131733,19.72969145,155.8,155.76,17.14004943]
[1748811132760,168.62969145,155.81,155.76,36.86974088]
[1748811134151,175.04776538,155.81,155.76,36.86974088]
[1748811134351,19.72969145,155.8,155.76,17.14004943]
[1748811134545,19.72969145,155.8,155.76,6.42004943]
[1748811136474,19.72969145,155.8,155.76,26.14974088]
[1748811140173,19.72969145,155.8,155.75,19.72969145]
[1748811141546,19.72969145,155.79,155.75,26.14995781]
[1748811142293,19.72969145,155.78,155.73,19.72969145]
[1748811143174,19.72969145,155.78,155.73,26.15096459]
[1748811144563,19.72969145,155.77,155.73,26.15096459]
[1748811144757,19.72969145,155.77,155.73,6.42127314]
[1748811146779,19.72969145,155.75,155.71,19.72969145]
[1748811147966,19.72969145,155.75,155.7,19.72969145]
[1748811149278,19.72969145,155.75,155.71,6.4221951]
[1748811150771,19.72969145,155.75,155.71,19.72969145]
[1748811151689,148.9,155.76,155.72,19.72969145]
[1748811151865,148.9,155.76,155.75,19.72969145]
[1748811152760,148.9,155.76,155.75,26.15023719]
[1748811153279,148.9,155.76,155.75,6.42054574]
[1748811154985,148.9,155.76,155.73,19.72969145]
[1748811155964,148.9,155.76,155.72,19.72969145]
[1748811157265,148.9,155.76,155.72,26.15128064]
[1748811157564,168.62969145,155.76,155.71,26.15185985]
[1748811157762,168.62969145,155.75,155.71,6.4221684]
[1748811158359,148.9,155.75,155.71,26.15185985]
[1748811160883,148.9,155.75,155.72,19.72969145]
[1748811162469,148.9,155.75,155.73,6.42137032]
[1748811164677,148.9,155.75,155.73,19.72969145]
[1748811164878,148.9,155.75,155.72,19.72969145]
[1748811166170,148.9,155.75,155.72,26.15122818]
[1748811166889,148.9,155.75,155.72,6.42153673]
[1748811167098,148.9,155.75,155.72,26.15122818]
[1748811167692,148.9,155.75,155.73,19.72969145]
[1748811168388,148.9,155.75,155.73,26.15080577]
[1748811172393,148.9,155.75,155.74,19.72969145]
[1748811173483,148.9,155.75,155.74,26.15064945]
[1748811177594,148.9,155.75,155.74,6.420958]
[1748811177797,148.9,155.75,155.74,26.15064945]
[1748811177985,148.9,155.75,155.74,6.420958]
[1748811178282,148.9,155.75,155.74,26.15064945]
[1748811179394,148.9,155.75,155.73,6.42137032]
[1748811179581,148.9,155.75,155.74,19.72969145]
[1748811180776,148.9,155.75,155.68,42.05768594]
[1748811180983,168.62969145,155.75,155.7,19.72969145]
[1748811181581,168.62969145,155.75,155.7,26.15229337]
[1748811182400,175.05027723,155.75,155.7,26.15229337]
[1748811182804,148.9,155.74,155.7,26.15229337]
[1748811184602,19.72969145,155.73,155.67,16.86345207]
[1748811184800,168.62969145,155.73,155.68,19.72969145]
[1748811185396,168.62969145,155.73,155.69,19.72969145]
[1748811187708,148.9,155.73,155.69,19.72969145]
[1748811187881,148.9,155.73,155.69,6.42292794]
[1748811188083,168.62969145,155.73,155.69,6.42292794]
[1748811188281,148.9,155.72,155.69,6.42292794]
[1748811189288,148.9,155.72,155.68,26.15312413]
[1748811192101,168.62969145,155.72,155.68,6.42343268]
[1748811192483,148.9,155.72,155.68,26.15312413]
[1748811192903,1.569,155.71,155.65,14.16584639]
[1748811193101,39.74,155.7,155.65,6.42453293]
[1748811193309,39.74,155.7,155.66,19.72969145]
[1748811193609,1.569,155.71,155.67,19.72969145]
[1748811193986,1.569,155.71,155.67,6.42383668]
[1748811195296,1.569,155.71,155.67,26.15352813]
[1748811196511,59.46969145,155.72,155.67,26.15352813]
[1748811197410,52.40993971,155.72,155.67,19.09377639]
[1748811197714,52.40993971,155.72,155.64,12.66993971]
[1748811197715,12.66993971,155.69,155.64,12.66993971]
[1748811198018,12.66993971,155.69,155.65,6.42467073]
[1748811199006,12.66993971,155.69,155.64,12.66993971]
[1748811199204,19.80347568,155.69,155.64,19.80347568]
[1748811199791,19.80347568,155.7,155.65,19.80347568]
[1748811200907,19.80347568,155.7,155.66,6.42425799]
[1748811202925,19.80347568,155.69,155.65,26.22804059]
[1748811203720,19.80347568,155.7,155.65,26.22804059]
[1748811203916,174.9,155.71,155.67,19.80347568]
[1748811204316,148.9,155.71,155.67,19.80347568]
[1748811205119,148.9,155.71,155.68,19.80347568]
[1748811205324,148.9,155.71,155.67,26.22716613]
[1748811205818,168.70347568,155.71,155.67,26.22716613]
[1748811206341,155.32240724,155.71,155.63,6.42549636]
[1748811206638,19.80347568,155.67,155.63,6.42549636]
[1748811206937,19.80347568,155.68,155.63,19.80347568]
[1748811207136,19.80347568,155.67,155.62,26.22930603]
[1748811207733,19.80347568,155.66,155.61,10.44]
[1748811208026,19.80347568,155.66,155.61,30.24347568]
[1748811208643,148.9,155.68,155.61,10.44]
[1748811208842,19.80347568,155.66,155.61,30.24347568]
[1748811209243,26.22785323,155.66,155.61,10.44]
[1748811209451,26.22785323,155.66,155.54,32.14456483]
[1748811209452,19.80347568,155.63,155.53,7.7592]
[1748811209629,19.80347568,155.62,155.57,19.80347568]
[1748811209825,19.80347568,155.62,155.54,50.7]
[1748811209826,19.80347568,155.61,155.54,50.7]
[1748811210343,19.80347568,155.6,155.54,10.4]
[1748811210653,19.80347568,155.58,155.51,6.43045463]
[1748811210935,19.80347568,155.58,155.53,19.80347568]
[1748811211142,19.80347568,155.59,155.52,6.43004115]
[1748811211344,19.80347568,155.59,155.54,19.80347568]
[1748811212639,19.80347568,155.57,155.5,44.14878097]
[1748811212816,19.80347568,155.56,155.51,19.80347568]
[1748811213011,168.70347568,155.56,155.51,19.80347568]
[1748811213218,168.70347568,155.56,155.5,16.8304833]
[1748811213219,19.80347568,155.55,155.5,16.8304833]
[1748811213417,148.9,155.56,155.51,19.80347568]
[1748811213631,168.70347568,155.56,155.51,19.80347568]
[1748811213847,168.70347568,155.56,155.52,19.80347568]
[1748811213848,148.9,155.56,155.52,19.80347568]
[1748811214026,148.9,155.56,155.53,19.80347568]
[1748811214232,66.38,155.61,155.54,19.80347568]
[1748811214449,214.36487485,155.62,155.57,19.80347568]
[1748811214753,19.80347568,155.61,155.56,19.80347568]
[1748811215647,19.80347568,155.61,155.57,19.80347568]
[1748811215854,229.96487485,155.62,155.57,19.80347568]
[1748811217354,229.96487485,155.62,155.53,6.42962772]
[1748811217550,236.39079142,155.62,155.57,19.80347568]
[1748811218746,19.80347568,155.61,155.57,19.80347568]
[1748811220838,148.9,155.6,155.57,19.80347568]
[1748811221915,148.9,155.6,155.56,6.42820354]
[1748811222119,148.9,155.6,155.56,19.80347568]
[1748811224028,148.9,155.6,155.56,26.23176951]
[1748811225432,148.9,155.6,155.57,19.80347568]
[1748811228247,148.9,155.6,155.53,6.42962772]
[1748811228425,148.9,155.6,155.56,19.80347568]
[1748811230343,148.9,155.6,155.57,19.80347568]
[1748811231246,148.9,155.6,155.53,6.42962772]
[1748811231450,168.70347568,155.6,155.56,19.80347568]
[1748811232936,148.9,155.6,155.56,19.80347568]
[1748811237845,148.9,155.6,155.56,26.23182892]
[1748811238155,148.9,155.6,155.57,19.80347568]
[1748811240161,148.9,155.6,155.59,19.80347568]
[1748811240464,8.92375635,155.75,155.64,26.0]
[1748811240646,7.95494507,155.78,155.73,19.80347568]
[1748811240829,26.0,155.77,155.73,19.80347568]
[1748811241028,45.80347568,155.77,155.72,19.80347568]
[1748811241233,19.80347568,155.77,155.72,19.80347568]
[1748811241447,45.80347568,155.77,155.73,19.80347568]
[1748811241849,26.0,155.77,155.74,19.80347568]
[1748811243068,26.0,155.77,155.73,19.80347568]
[1748811243266,27.75829498,155.78,155.73,19.80347568]
[1748811243442,26.0,155.77,155.73,19.80347568]
[1748811245458,148.9,155.76,155.73,19.80347568]
[1748811245837,148.9,155.76,155.74,19.80347568]
[1748811246250,148.9,155.76,155.75,19.80347568]
[1748811251077,148.9,155.76,155.75,26.22402142]
[1748811251371,148.9,155.76,155.75,6.42054574]
[1748811251580,148.9,155.76,155.75,19.80347568]
[1748811253161,148.9,155.76,155.75,26.22402142]
[1748811253360,148.9,155.8,155.75,26.22402142]
[1748811253561,148.9,155.8,155.76,19.80347568]
[1748811257084,148.9,155.8,155.76,26.22357498]
[1748811257255,148.9,155.8,155.77,19.80347568]
[1748811258865,148.9,155.8,155.77,26.22298847]
[1748811259964,148.9,155.8,155.78,19.80347568]
[1748811263170,148.9,155.8,155.78,26.2227712]
[1748811264476,148.9,155.8,155.78,19.80347568]
[1748811267185,148.9,155.8,155.78,26.22276378]
[1748811267380,148.9,155.8,155.78,6.4192881]
[1748811269985,148.9,155.8,155.78,19.80347568]
[1748811271190,148.9,155.85,155.79,19.80347568]
[1748811271483,148.9,155.85,155.83,19.80347568]
[1748811272072,148.9,155.85,155.83,26.22059095]
[1748811274085,148.9,155.85,155.82,26.22104115]
[1748811276592,148.9,155.85,155.83,19.80347568]
[1748811276804,42.09793148,155.89,155.81,6.41807329]
[1748811276805,184.58302202,155.89,155.84,19.80347568]
[1748811276990,184.58302202,155.89,155.85,19.80347568]
[1748811277990,184.58302202,155.89,155.88,19.80347568]
[1748811278211,35.68302202,155.89,155.88,19.80347568]
[1748811278694,35.68302202,155.89,155.88,26.21866685]
[1748811279288,194.70347568,155.93,155.88,26.21866685]
[1748811279496,21.59050528,155.95,155.9,19.80347568]
[1748811279793,21.59050528,155.95,155.87,10.54]
[1748811279794,19.80347568,155.92,155.87,30.34347568]
[1748811281179,19.80347568,155.92,155.87,36.75900782]
[1748811281795,19.80347568,155.89,155.87,10.54]
[1748811282590,148.9,155.91,155.85,19.80347568]
[1748811282783,19.80347568,155.89,155.85,19.80347568]
[1748811283881,155.3143542,155.91,155.85,26.21983913]
[1748811284091,19.80347568,155.89,155.85,26.21983913]
[1748811284298,19.80347568,155.89,155.85,6.41636345]
[1748811284699,19.80347568,155.88,155.84,16.95674627]
[1748811284885,181.3143542,155.91,155.84,10.54]
[1748811284886,19.80347568,155.87,155.84,10.54]
[1748811286000,168.70347568,155.87,155.84,10.54]
[1748811290694,148.9,155.87,155.84,36.76023657]
[1748811291808,170.33717568,155.89,155.84,36.76023657]
[1748811292701,26.0,155.93,155.88,19.80347568]
[1748811292903,19.80347568,155.98,155.89,39.8]
[1748811293114,26.21485835,155.98,155.92,19.80347568]
[1748811293419,52.21485835,155.98,155.93,39.8]
[1748811293585,45.80347568,155.98,155.93,39.8]
[1748811293990,19.80347568,155.97,155.93,39.8]
[1748811294194,19.80347568,155.96,155.9,19.80347568]
[1748811294405,20.02680528,155.95,155.91,39.8]
[1748811294691,20.02680528,155.95,155.91,46.21383501]
[1748811295097,0.2233296,155.95,155.91,66.01731069]
[1748811295613,0.2233296,155.95,155.93,19.80347568]
[1748811296412,0.2233296,155.95,155.94,19.80347568]
[1748811296887,0.2233296,155.95,155.94,26.21619852]
[1748811297093,0.2233296,155.95,155.94,65.97619852]
[1748811301312,0.2233296,155.95,155.94,46.17272284]
[1748811301525,0.2233296,155.95,155.91,19.80347568]
[1748811301699,0.2233296,155.95,155.91,39.8]
[1748811301908,0.2233296,155.95,155.91,59.60347568]
[1748811302448,0.2233296,155.95,155.91,66.01743244]
[1748811303608,0.2233296,155.95,155.91,65.99743244]
[1748811303809,149.1233296,155.95,155.91,65.99743244]
[1748811304311,149.1233296,155.95,155.92,19.80347568]
[1748811304707,149.1233296,155.95,155.93,19.80347568]
[1748811306125,149.1233296,155.95,155.92,26.21683522]
[1748811306918,149.1233296,155.95,155.93,19.80347568]
[1748811307821,149.1233296,155.95,155.92,26.21683522]
[1748811311522,149.1233296,155.95,155.93,19.80347568]
[1748811311723,149.1233296,155.95,155.93,59.54347568]
[1748811311926,0.2233296,155.95,155.94,19.80347568]
[1748811313525,0.2233296,155.95,155.94,26.21619852]
[1748811316032,0.2233296,155.95,155.94,36.65619852]
[1748811339146,0.2233296,155.95,155.94,55.30584738]
[1748811343855,0.2233296,155.95,155.94,94.56584738]
[1748811344236,0.2233296,155.95,155.94,26.21619852]
[1748811344443,0.2233296,155.95,155.94,75.91619852]
[1748811346448,0.2233296,155.95,155.94,36.49619852]
[1748811346650,0.2233296,155.95,155.94,75.89619852]
[1748811346873,0.2233296,155.95,155.94,6.41272284]
[1748811347068,0.2233296,155.95,155.94,65.61619852]
[1748811349272,0.2233296,155.95,155.94,26.21619852]
[1748811352575,0.2233296,155.95,155.94,6.41272284]
[1748811355170,0.2233296,155.95,155.94,26.21619852]
[1748811355373,175.33915623,155.95,155.87,25.0652516]